[Event "2. Itzehoer Schach Open"]
[Site "Itzehoe, Germany"]
[Date "2023.04.30"]
[Round "3.21"]
[White "Aguike, Toshiya"]
[Black "Zoellner, Bente"]
[Result "1/2-1/2"]
[TimeControl "90 min / 40 Züge + 30 min + 30 Sek pro Zug"]
[WhiteElo "1491"]
[BlackElo "1805"]

1. e4 {[%clk 01:30:58]} {[%emt 00:00:02]} c5 {[%clk 01:27:44]} {[%emt
00:03:15]} 2. Nf3 {[%clk 01:31:19]} {[%emt 00:00:10]} Nc6 {[%clk 01:28:04]}
{[%emt 00:00:09]} 3. d4 {[%clk 01:31:43]} {[%emt 00:00:07]} cxd4 {[%clk
01:28:26]} {[%emt 00:00:08]} 4. Nxd4 {[%clk 01:32:05]} {[%emt 00:00:08]} Nf6
{[%clk 01:28:51]} {[%emt 00:00:05]} 5. Nc3 {[%clk 01:32:28]} {[%emt 00:00:06]}
e5 {[%clk 01:29:14]} {[%emt 00:00:07]} 6. Nf5 {[%clk 01:32:21]} {[%emt
00:00:38]} d5 {[%clk 01:16:20]} {[%emt 00:13:24]} 7. exd5 {[%clk 01:29:17]}
{[%emt 00:03:34]} Bxf5 {[%clk 01:13:27]} {[%emt 00:03:23]} 8. dxc6 {[%clk
01:27:25]} {[%emt 00:02:23]} bxc6 {[%clk 01:06:27]} {[%emt 00:07:29]} 9. Bg5
{[%clk 01:26:01]} {[%emt 00:01:53]} Bb4 {[%clk 01:04:10]} {[%emt 00:02:48]} 10.
Qe2 {[%clk 01:25:23]} {[%emt 00:01:09]} Bxc3+ {[%clk 00:55:29]} {[%emt
00:09:10]} 11. bxc3 {[%clk 01:25:40]} {[%emt 00:00:13]} Qa5 {[%clk 00:55:21]}
{[%emt 00:00:37]} 12. Bd2 {[%clk 01:24:57]} {[%emt 00:01:14]} Ne4 {[%clk
00:50:44]} {[%emt 00:05:07]} 13. c4 {[%clk 01:23:19]} {[%emt 00:02:08]} Nxd2
{[%clk 00:46:42]} {[%emt 00:04:32]} 14. Qxd2 {[%clk 01:23:02]} {[%emt
00:00:47]} Qxd2+ {[%clk 00:46:51]} {[%emt 00:00:21]} 15. Kxd2 {[%clk 01:23:25]}
{[%emt 00:00:06]} Ke7 {[%clk 00:47:06]} {[%emt 00:00:16]} 16. Be2 {[%clk
01:23:36]} {[%emt 00:00:19]} Rhd8+ {[%clk 00:46:39]} {[%emt 00:00:57]} 17. Kc3
{[%clk 01:23:54]} {[%emt 00:00:12]} Kd6 {[%clk 00:45:12]} {[%emt 00:01:57]} 18.
f3 {[%clk 01:23:54]} {[%emt 00:00:30]} Kc5 {[%clk 00:42:41]} {[%emt 00:03:02]}
19. Bd3 {[%clk 01:23:54]} {[%emt 00:00:29]} Be6 {[%clk 00:42:16]} {[%emt
00:00:55]} 20. Rhe1 {[%clk 01:23:52]} {[%emt 00:00:31]} f6 {[%clk 00:39:41]}
{[%emt 00:03:06]} 21. Rab1 {[%clk 01:22:56]} {[%emt 00:01:26]} Bc8 {[%clk
00:34:21]} {[%emt 00:05:51]} 22. h3 {[%clk 01:21:41]} {[%emt 00:01:44]} h6
{[%clk 00:32:49]} {[%emt 00:02:02]} 23. h4 {[%clk 01:21:10]} {[%emt 00:01:01]}
Rd4 {[%clk 00:29:35]} {[%emt 00:03:43]} 24. g4 {[%clk 01:20:40]} {[%emt
00:01:00]} a5 {[%clk 00:28:51]} {[%emt 00:01:15]} 25. Re4 {[%clk 01:17:20]}
{[%emt 00:03:49]} Ba6 {[%clk 00:27:18]} {[%emt 00:02:03]} 26. Rb3 {[%clk
01:15:14]} {[%emt 00:02:37]} Ra7 {[%clk 00:22:08]} {[%emt 00:05:40]} 27. Ra3
{[%clk 01:12:37]} {[%emt 00:03:07]} Rxe4 {[%clk 00:20:22]} {[%emt 00:02:16]} 28.
fxe4 {[%clk 01:12:08]} {[%emt 00:01:00]} Bc8 {[%clk 00:19:52]} {[%emt
00:00:59]} 29. Be2 {[%clk 01:09:06]} {[%emt 00:03:31]} a4 {[%clk 00:19:31]}
{[%emt 00:00:52]} 30. h5 {[%clk 01:08:39]} {[%emt 00:00:56]} Be6 {[%clk
00:19:24]} {[%emt 00:00:38]} 31. Kd2 {[%clk 01:01:51]} {[%emt 00:07:19]} Kb4
{[%clk 00:18:24]} {[%emt 00:01:29]} 32. Rc3 {[%clk 01:01:19]} {[%emt 00:01:02]}
Rd7+ {[%clk 00:16:02]} {[%emt 00:02:52]} 33. Rd3 {[%clk 01:01:09]} {[%emt
00:00:40]} Kc5 {[%clk 00:08:55]} {[%emt 00:07:37]} 34. Rxd7 {[%clk 00:55:12]}
{[%emt 00:06:26]} Bxd7 {[%clk 00:09:13]} {[%emt 00:00:13]} 35. Kc3 {[%clk
00:55:31]} {[%emt 00:00:10]} a3 {[%clk 00:09:25]} {[%emt 00:00:19]} 36. Bd1
{[%clk 00:48:17]} {[%emt 00:07:44]} Be6 {[%clk 00:09:31]} {[%emt 00:00:24]} 37.
Be2 {[%clk 00:48:40]} {[%emt 00:00:07]} Bf7 {[%clk 00:09:38]} {[%emt 00:00:22]}
38. Bf1 {[%clk 00:46:34]} {[%emt 00:02:36]} g6 {[%clk 00:09:33]} {[%emt
00:00:36]} 39. hxg6 {[%clk 00:45:44]} {[%emt 00:01:20]} Bxg6 {[%clk 00:09:55]}
{[%emt 00:00:08]} 40. Bg2 {[%clk 00:45:09]} {[%emt 00:01:04]} Bf7 {[%clk
00:06:56]} {[%emt 00:03:29]} 41. Bf1 {[%clk 00:45:18]} {[%emt 00:00:22]} h5
{[%clk 00:06:49]} {[%emt 00:00:37]} 42. gxh5 {[%clk 00:45:12]} {[%emt
00:00:36]} Bxh5 {[%clk 00:07:04]} {[%emt 00:00:15]} 43. Bh3 {[%clk 00:45:23]}
{[%emt 00:00:19]} Bf7 {[%clk 00:06:30]} {[%emt 00:01:04]} 44. Bf1 {[%clk
00:44:22]} {[%emt 00:01:30]} Bg6 {[%clk 00:06:49]} {[%emt 00:00:11]} 45. Bd3
{[%clk 00:44:12]} {[%emt 00:00:40]} Bh7 {[%clk 00:06:08]} {[%emt 00:01:11]} 46.
Kd2 {[%clk 00:44:19]} {[%emt 00:00:24]} Kd4 {[%clk 00:04:46]} {[%emt 00:01:52]}
47. c3+ {[%clk 00:44:36]} {[%emt 00:00:13]} Kc5 {[%clk 00:04:51]} {[%emt
00:00:26]} 48. Kc2 {[%clk 00:44:55]} {[%emt 00:00:10]} Bg8 {[%clk 00:04:32]}
{[%emt 00:00:49]} 49. Kb3 {[%clk 00:44:12]} {[%emt 00:01:12]} Be6 {[%clk
00:03:51]} {[%emt 00:01:12]} 50. Be2 {[%clk 00:44:06]} {[%emt 00:00:35]} f5
{[%clk 00:26:17]} {[%emt 00:08:04]} 51. exf5 {[%clk 01:14:27]} {[%emt
00:00:09]} Bxf5 {[%clk 00:26:43]} {[%emt 00:00:04]} 52. Kxa3 {[%clk 01:14:40]}
{[%emt 00:00:17]} e4 {[%clk 00:24:38]} {[%emt 00:02:35]} 53. Kb3 {[%clk
01:13:47]} {[%emt 00:01:24]} Bh3 {[%clk 00:24:22]} {[%emt 00:00:46]} 54. Kc2
{[%clk 01:13:07]} {[%emt 00:01:10]} Be6 {[%clk 00:17:51]} {[%emt 00:07:01]} 55.
a4 {[%clk 01:11:10]} {[%emt 00:02:27]} Bxc4 {[%clk 00:17:12]} {[%emt 00:01:09]}
56. Bxc4 {[%clk 01:10:28]} {[%emt 00:01:11]} Kxc4 {[%clk 00:17:38]} {[%emt
00:00:03]} 57. Kd2 {[%clk 01:10:47]} {[%emt 00:00:12]} Kc5 {[%clk 00:17:33]}
{[%emt 00:00:36]} 58. Ke3 {[%clk 01:10:11]} {[%emt 00:01:05]} Kb6 {[%clk
00:17:56]} {[%emt 00:00:08]} 59. Kxe4 {[%clk 01:10:28]} {[%emt 00:00:12]} Ka5
{[%clk 00:18:23]} {[%emt 00:00:04]} 60. Kd4 {[%clk 01:09:21]} {[%emt 00:01:37]}
Kxa4 {[%clk 00:18:45]} {[%emt 00:00:07]} 61. Kc4 {[%clk 01:09:16]} {[%emt
00:00:36]} Ka3 {[%clk 00:18:53]} {[%emt 00:00:22]} 62. Kc5 {[%clk 01:09:00]}
{[%emt 00:00:45]} Kb3 {[%clk 00:19:14]} {[%emt 00:00:09]} 63. Kxc6 {[%clk
01:09:16]} {[%emt 00:00:13]} Kxc3 {[%clk 00:19:07]} {[%emt 00:00:05]} 1/2-1/2

[Event "2. Itzehoer Schach Open"]
[Site "Itzehoe, Germany"]
[Date "2023.04.30"]
[Round "3.11"]
[White "Hansen, Fridolin"]
[Black "Tarasenko, Nazar"]
[Result "0-1"]
[TimeControl "90 min / 40 Züge + 30 min + 30 Sek pro Zug"]
[WhiteElo "1764"]
[BlackElo "1970"]

1. e4 {[%clk 01:30:57]} {[%emt 00:00:03]} c5 {[%clk 01:30:52]} {[%emt
00:00:08]} 2. Nc3 {[%clk 01:31:23]} {[%emt 00:00:04]} d6 {[%clk 01:30:46]}
{[%emt 00:00:36]} 3. g3 {[%clk 01:31:27]} {[%emt 00:00:27]} g6 {[%clk
01:29:34]} {[%emt 00:01:40]} 4. Bg2 {[%clk 01:31:48]} {[%emt 00:00:10]} Bg7
{[%clk 01:27:59]} {[%emt 00:02:04]} 5. Nge2 {[%clk 01:32:00]} {[%emt 00:00:19]}
e6 {[%clk 01:26:30]} {[%emt 00:01:58]} 6. O-O {[%clk 01:31:54]} {[%emt
00:00:37]} Ne7 {[%clk 01:23:50]} {[%emt 00:03:10]} 7. d3 {[%clk 01:29:42]}
{[%emt 00:02:42]} O-O {[%clk 01:21:46]} {[%emt 00:02:33]} 8. Nf4 {[%clk
01:27:25]} {[%emt 00:02:48]} Nbc6 {[%clk 01:17:40]} {[%emt 00:04:37]} 9. Be3
{[%clk 01:26:42]} {[%emt 00:01:12]} a6 {[%clk 01:14:42]} {[%emt 00:03:28]} 10.
a4 {[%clk 01:21:03]} {[%emt 00:06:10]} Rb8 {[%clk 01:08:57]} {[%emt 00:06:14]}
11. Qd2 {[%clk 01:17:39]} {[%emt 00:03:54]} b5 {[%clk 01:08:00]} {[%emt
00:01:24]} 12. axb5 {[%clk 01:18:02]} {[%emt 00:00:11]} axb5 {[%clk 01:08:26]}
{[%emt 00:00:03]} 13. Rab1 {[%clk 01:10:18]} {[%emt 00:08:14]} Nd4 {[%clk
00:59:33]} {[%emt 00:09:23]} 14. b4 {[%clk 01:00:30]} {[%emt 00:10:18]} Bd7
{[%clk 00:54:15]} {[%emt 00:05:48]} 15. Nce2 {[%clk 00:57:10]} {[%emt
00:03:50]} Nec6 {[%clk 00:51:00]} {[%emt 00:03:45]} 16. c3 {[%clk 00:52:19]}
{[%emt 00:05:21]} Nxe2+ {[%clk 00:51:16]} {[%emt 00:00:14]} 17. Nxe2 {[%clk
00:52:11]} {[%emt 00:00:38]} cxb4 {[%clk 00:49:31]} {[%emt 00:02:15]} 18. cxb4
{[%clk 00:52:17]} {[%emt 00:00:24]} Ne5 {[%clk 00:47:28]} {[%emt 00:02:33]} 19.
h3 {[%clk 00:49:27]} {[%emt 00:03:20]} f5 {[%clk 00:44:39]} {[%emt 00:03:19]}
20. f4 {[%clk 00:43:48]} {[%emt 00:06:09]} Nf7 {[%clk 00:44:16]} {[%emt
00:00:53]} 21. Rfc1 {[%clk 00:38:42]} {[%emt 00:05:37]} e5 {[%clk 00:41:24]}
{[%emt 00:03:21]} 22. Nc3 {[%clk 00:30:36]} {[%emt 00:08:36]} Be6 {[%clk
00:39:25]} {[%emt 00:02:29]} 23. Nd5 {[%clk 00:21:47]} {[%emt 00:09:20]} Bxd5
{[%clk 00:39:18]} {[%emt 00:00:36]} 24. exd5 {[%clk 00:22:12]} {[%emt
00:00:05]} Qd7 {[%clk 00:37:45]} {[%emt 00:02:02]} 25. Rc6 {[%clk 00:17:56]}
{[%emt 00:04:47]} Rfc8 {[%clk 00:38:06]} {[%emt 00:00:09]} 26. Rbc1 {[%clk
00:17:30]} {[%emt 00:00:56]} Nd8 {[%clk 00:38:26]} {[%emt 00:00:09]} 27. Qa2
{[%clk 00:17:21]} {[%emt 00:00:40]} Ra8 {[%clk 00:36:53]} {[%emt 00:02:03]} 28.
Qb3 {[%clk 00:13:38]} {[%emt 00:04:13]} Kh8 {[%clk 00:36:51]} {[%emt 00:00:31]}
29. Bb6 {[%clk 00:12:02]} {[%emt 00:02:08]} exf4 {[%clk 00:33:33]} {[%emt
00:03:46]} 30. gxf4 {[%clk 00:10:14]} {[%emt 00:02:19]} Rab8 {[%clk 00:33:17]}
{[%emt 00:00:47]} 31. Rc7 {[%clk 00:08:50]} {[%emt 00:01:54]} Rxc7 {[%clk
00:31:25]} {[%emt 00:02:21]} 32. Rxc7 {[%clk 00:09:14]} {[%emt 00:00:06]} Qe8
{[%clk 00:31:33]} {[%emt 00:00:21]} 33. Bf2 {[%clk 00:08:06]} {[%emt 00:01:39]}
Rb7 {[%clk 00:30:20]} {[%emt 00:01:42]} 34. Qc2 {[%clk 00:06:30]} {[%emt
00:02:07]} Rxc7 {[%clk 00:28:30]} {[%emt 00:02:21]} 35. Qxc7 {[%clk 00:06:53]}
{[%emt 00:00:06]} Nf7 {[%clk 00:28:43]} {[%emt 00:00:16]} 36. Qc6 {[%clk
00:04:16]} {[%emt 00:03:07]} Qb8 {[%clk 00:28:01]} {[%emt 00:01:11]} 37. Bb6
{[%clk 00:04:08]} {[%emt 00:00:40]} Kg8 {[%clk 00:28:10]} {[%emt 00:00:20]} 38.
Bc7 {[%clk 00:03:09]} {[%emt 00:01:31]} Qa7+ {[%clk 00:27:59]} {[%emt
00:00:40]} 39. Kh2 {[%clk 00:02:35]} {[%emt 00:01:04]} Qe3 {[%clk 00:25:34]}
{[%emt 00:02:55]} 40. Bxd6 {[%clk 00:00:58]} {[%emt 00:02:07]} h6 {[%clk
00:24:35]} {[%emt 00:01:28]} 41. Bc5 {[%clk 00:05:24]} {[%emt 00:26:05]} Qxf4+
{[%clk 00:54:50]} {[%emt 00:00:14]} 42. Kh1 {[%clk 00:05:14]} {[%emt 00:00:41]}
Kh7 {[%clk 00:53:10]} {[%emt 00:02:10]} 43. Qe8 {[%clk 00:03:42]} {[%emt
00:02:01]} Ne5 {[%clk 00:50:13]} {[%emt 00:03:27]} 44. d6 {[%clk 00:02:42]}
{[%emt 00:01:31]} Qc1+ {[%clk 00:45:49]} {[%emt 00:04:54]} 45. Kh2 {[%clk
00:02:40]} {[%emt 00:00:32]} Qe1 {[%clk 00:44:00]} {[%emt 00:02:20]} 46. d7
{[%clk 00:02:13]} {[%emt 00:00:56]} Ng4+ {[%clk 00:43:22]} {[%emt 00:01:08]} 47.
hxg4 {[%clk 00:02:21]} {[%emt 00:00:22]} Be5+ {[%clk 00:43:46]} {[%emt
00:00:06]} 48. Qxe5 {[%clk 00:02:08]} {[%emt 00:00:43]} Qxe5+ {[%clk 00:44:08]}
{[%emt 00:00:07]} 49. Kh1 {[%clk 00:02:12]} {[%emt 00:00:27]} Qc7 {[%clk
00:44:25]} {[%emt 00:00:12]} 50. gxf5 {[%clk 00:01:36]} {[%emt 00:01:06]} gxf5
{[%clk 00:44:50]} {[%emt 00:00:06]} 51. d4 {[%clk 00:01:21]} {[%emt 00:00:45]}
Qxd7 {[%clk 00:45:15]} {[%emt 00:00:05]} 52. d5 {[%clk 00:01:45]} {[%emt
00:00:05]} Kg6 {[%clk 00:45:36]} {[%emt 00:00:09]} 53. d6 {[%clk 00:02:01]}
{[%emt 00:00:15]} Kg5 {[%clk 00:45:54]} {[%emt 00:00:12]} 54. Bh3 {[%clk
00:01:59]} {[%emt 00:00:31]} Kh4 {[%clk 00:45:54]} {[%emt 00:00:30]} 55. Kh2
{[%clk 00:02:15]} {[%emt 00:00:14]} Qe6 {[%clk 00:45:04]} {[%emt 00:01:20]} 56.
Bf2+ {[%clk 00:02:00]} {[%emt 00:00:45]} Kg5 {[%clk 00:45:28]} {[%emt
00:00:07]} 57. Bc5 {[%clk 00:01:42]} {[%emt 00:00:48]} Kf4 {[%clk 00:45:46]}
{[%emt 00:00:11]} 58. Bg2 {[%clk 00:01:02]} {[%emt 00:01:11]} Qe1 {[%clk
00:45:09]} {[%emt 00:01:07]} 59. d7 {[%clk 00:00:45]} {[%emt 00:00:47]} Qd2
{[%clk 00:45:33]} {[%emt 00:00:06]} 60. Bd6+ {[%clk 00:00:34]} {[%emt
00:00:41]} Qxd6 {[%clk 00:45:53]} {[%emt 00:00:09]} 0-1

[Event "2. Itzehoer Schach Open"]
[Site "Itzehoe, Germany"]
[Date "2023.04.30"]
[Round "3.33"]
[White "Baumann, Simon"]
[Black "Wohlrabe, Joerg"]
[Result "0-1"]
[TimeControl "90 min / 40 Züge + 30 min + 30 Sek pro Zug"]
[WhiteElo "1289"]
[BlackElo "1635"]

1. e4 {[%clk 01:30:59]} e6 {[%clk 01:30:55]} {[%emt 00:00:06]} 2. d4 {[%clk
01:31:18]} {[%emt 00:00:10]} b6 {[%clk 01:31:20]} {[%emt 00:00:05]} 3. Bd3
{[%clk 01:30:45]} {[%emt 00:01:03]} Bb7 {[%clk 01:31:44]} {[%emt 00:00:07]} 4.
Nc3 {[%clk 01:31:09]} {[%emt 00:00:06]} Bb4 {[%clk 01:32:07]} {[%emt 00:00:06]}
5. Bd2 {[%clk 01:30:59]} {[%emt 00:00:40]} f5 {[%clk 01:31:53]} {[%emt
00:00:44]} 6. f3 {[%clk 01:30:59]} {[%emt 00:00:30]} Bxc3 {[%clk 01:31:24]}
{[%emt 00:00:59]} 7. Bxc3 {[%clk 01:31:11]} {[%emt 00:00:19]} fxe4 {[%clk
01:31:42]} {[%emt 00:00:12]} 8. fxe4 {[%clk 01:31:30]} {[%emt 00:00:10]} Qh4+
{[%clk 01:24:44]} {[%emt 00:07:27]} 9. g3 {[%clk 01:31:28]} {[%emt 00:00:33]}
Qe7 {[%clk 01:24:58]} {[%emt 00:00:15]} 10. Qf3 {[%clk 01:31:22]} {[%emt
00:00:35]} Nf6 {[%clk 01:20:50]} {[%emt 00:04:37]} 11. Ne2 {[%clk 01:30:43]}
{[%emt 00:01:11]} c5 {[%clk 01:18:09]} {[%emt 00:03:11]} 12. b3 {[%clk
01:29:08]} {[%emt 00:02:07]} Rf8 {[%clk 01:10:16]} {[%emt 00:08:21]} 13. Qg2
{[%clk 01:27:53]} {[%emt 00:01:45]} Ng4 {[%clk 01:05:33]} {[%emt 00:05:12]} 14.
Nf4 {[%clk 01:27:32]} {[%emt 00:00:52]} cxd4 {[%clk 01:04:28]} {[%emt
00:01:36]} 15. Qe2 {[%clk 01:26:12]} {[%emt 00:01:45]} Nf6 {[%clk 00:57:48]}
{[%emt 00:07:14]} 16. Bd2 {[%clk 01:25:46]} {[%emt 00:00:56]} Nc6 {[%clk
00:56:43]} {[%emt 00:01:35]} 17. Rf1 {[%clk 01:24:37]} {[%emt 00:01:40]} Nb4
{[%clk 00:54:06]} {[%emt 00:03:06]} 18. e5 {[%clk 01:24:13]} {[%emt 00:00:54]}
Nxd3+ {[%clk 00:53:35]} {[%emt 00:01:02]} 19. Qxd3 {[%clk 01:24:17]} {[%emt
00:00:24]} Ne4 {[%clk 00:52:39]} {[%emt 00:01:27]} 20. Qxd4 {[%clk 01:23:17]}
{[%emt 00:01:30]} Nxd2 {[%clk 00:52:02]} {[%emt 00:01:08]} 21. Qxd2 {[%clk
01:23:06]} {[%emt 00:00:42]} Qc5 {[%clk 00:49:45]} {[%emt 00:02:45]} 22. O-O-O
{[%clk 01:22:40]} {[%emt 00:00:57]} Bc6 {[%clk 00:47:39]} {[%emt 00:02:35]} 23.
Qe2 {[%clk 01:19:35]} {[%emt 00:03:35]} Rc8 {[%clk 00:43:35]} {[%emt 00:04:34]}
24. Nd3 {[%clk 01:16:27]} {[%emt 00:03:39]} Qa3+ {[%clk 00:41:25]} {[%emt
00:02:39]} 25. Kb1 {[%clk 01:16:47]} {[%emt 00:00:11]} Rxf1 {[%clk 00:38:00]}
{[%emt 00:03:54]} 26. Rxf1 {[%clk 01:16:59]} {[%emt 00:00:18]} Qe7 {[%clk
00:37:16]} {[%emt 00:01:14]} 27. Rf4 {[%clk 01:09:57]} {[%emt 00:07:33]} a5
{[%clk 00:36:35]} {[%emt 00:01:10]} 28. Nb2 {[%clk 01:08:50]} {[%emt 00:01:38]}
Bb7 {[%clk 00:34:45]} {[%emt 00:02:19]} 29. Na4 {[%clk 01:07:15]} {[%emt
00:02:05]} Rc6 {[%clk 00:25:09]} {[%emt 00:10:06]} 30. Qb5 {[%clk 01:05:36]}
{[%emt 00:02:10]} g5 {[%clk 00:20:30]} {[%emt 00:05:08]} 31. Rc4 {[%clk
01:04:08]} {[%emt 00:01:58]} Rxc4 {[%clk 00:19:10]} {[%emt 00:01:50]} 32. Qxc4
{[%clk 01:04:00]} {[%emt 00:00:39]} Qd8 {[%clk 00:16:40]} {[%emt 00:02:59]} 33.
Qb5 {[%clk 01:02:22]} {[%emt 00:02:08]} Bc6 {[%clk 00:16:25]} {[%emt 00:00:45]}
34. Qxb6 {[%clk 01:02:11]} {[%emt 00:00:42]} Bxa4 {[%clk 00:16:48]} {[%emt
00:00:07]} 35. Qxd8+ {[%clk 01:02:31]} {[%emt 00:00:09]} Kxd8 {[%clk 00:17:11]}
{[%emt 00:00:07]} 36. bxa4 {[%clk 01:02:47]} {[%emt 00:00:14]} Kc7 {[%clk
00:17:35]} {[%emt 00:00:05]} 37. Kb2 {[%clk 01:03:11]} {[%emt 00:00:06]} Kc6
{[%clk 00:17:21]} {[%emt 00:00:44]} 38. c4 {[%clk 01:02:58]} {[%emt 00:00:43]}
Kc5 {[%clk 00:17:23]} {[%emt 00:00:27]} 39. Kc3 {[%clk 01:02:59]} {[%emt
00:00:30]} g4 {[%clk 00:14:21]} {[%emt 00:03:31]} 40. a3 {[%clk 01:02:20]}
{[%emt 00:01:10]} h6 {[%clk 00:14:36]} {[%emt 00:00:14]} 41. Kd3 {[%clk
01:02:40]} {[%emt 00:00:11]} d6 {[%clk 00:14:19]} {[%emt 00:00:47]} 42. exd6
{[%clk 01:02:45]} {[%emt 00:00:24]} Kxd6 {[%clk 00:14:40]} {[%emt 00:00:09]} 43.
Kd4 {[%clk 01:02:19]} {[%emt 00:00:56]} h5 {[%clk 00:14:14]} {[%emt 00:00:56]}
44. c5+ {[%clk 01:02:00]} {[%emt 00:00:50]} Kc6 {[%clk 00:14:25]} {[%emt
00:00:19]} 45. Ke5 {[%clk 00:57:03]} {[%emt 00:05:26]} Kxc5 {[%clk 00:14:45]}
{[%emt 00:00:10]} 46. Kxe6 {[%emt 00:00:07]} Kc4 {[%emt 00:00:07]} 47. Kd6
{[%clk 00:56:37]} {[%emt 00:00:42]} Kb3 {[%clk 00:15:02]} {[%emt 00:00:13]} 48.
Kc5 {[%clk 00:57:00]} {[%emt 00:00:07]} Kxa4 {[%clk 00:15:12]} {[%emt
00:00:21]} 49. Kb6 {[%clk 00:57:09]} {[%emt 00:00:21]} Kxa3 {[%clk 00:15:09]}
{[%emt 00:00:32]} 50. Kxa5 {[%clk 00:57:29]} {[%emt 00:00:10]} Kb3 {[%clk
00:15:34]} {[%emt 00:00:05]} 51. Kb5 {[%clk 00:57:52]} {[%emt 00:00:07]} Kc3
{[%clk 00:15:51]} {[%emt 00:00:12]} 52. Kc5 {[%clk 00:58:19]} {[%emt 00:00:03]}
Kd3 {[%clk 00:16:08]} {[%emt 00:00:13]} 53. Kd5 {[%clk 00:58:36]} {[%emt
00:00:13]} Ke3 {[%clk 00:16:32]} {[%emt 00:00:06]} 54. Ke5 {[%clk 00:58:54]}
{[%emt 00:00:13]} Kf3 {[%clk 00:16:48]} {[%emt 00:00:13]} 55. Kf5 {[%clk
00:58:48]} {[%emt 00:00:36]} Kg2 {[%clk 00:17:11]} {[%emt 00:00:07]} 0-1